bitfinex-derivatives/quotes_SOLF0:USTF0_20260105
["timestamp","ask_amount","ask_price","bid_price","bid_amount"]
[1767644089005,6.4702,139.12,139.04,86.81314742]
[1767644090718,6.4702,139.12,139.05,6.4734]
[1767644096721,6.4696,139.14,139.06,1.85314742]
[1767644096922,2.48552571,139.15,139.06,1.85314742]
[1767644097415,0.63237829,139.14,139.06,1.85314742]
[1767644098326,0.63237829,139.14,139.06,8.32604742]
[1767644099519,7.10167829,139.14,139.06,8.32604742]
[1767644100428,6.4697,139.13,139.06,8.32604742]
[1767644100629,6.4697,139.13,139.07,84.96]
[1767644101127,0.63237829,139.14,139.07,91.4325]
[1767644101327,0.68022289,139.16,139.08,1.85314742]
[1767644101724,0.68022289,139.16,139.1,1.85314742]
[1767644101925,2.53337031,139.18,139.1,1.85314742]
[1767644102825,6.4679,139.17,139.1,1.85314742]
[1767644103223,6.4683,139.16,139.09,8.32464742]
[1767644103428,0.68022289,139.13,139.05,1.85314742]
[1767644103724,0.68022289,139.13,139.06,84.94]
[1767644104532,7.15002289,139.13,139.06,84.94]
[1767644105135,7.15002289,139.13,139.05,91.413]
[1767644105631,0.68022289,139.13,139.06,1.85314742]
[1767644106529,0.68022289,139.13,139.07,6.4723]
[1767644106727,0.68022289,139.13,139.06,84.94]
[1767644106929,2.53337031,139.13,139.06,84.94]
[1767644107631,0.68022289,139.13,139.06,84.94]
[1767644107934,0.68022289,139.13,139.07,6.4725]
[1767644108128,0.68022289,139.15,139.07,6.4725]
[1767644108336,0.68022289,139.17,139.08,1.85314742]
[1767644108846,0.68022289,139.14,139.07,84.94]
[1767644109535,7.14952289,139.14,139.07,84.94]
[1767644111642,7.14862289,139.16,139.08,1.85314742]
[1767644112240,7.14912289,139.15,139.08,93.26494742]
[1767644112839,7.14912289,139.15,139.08,1.85314742]
[1767644113039,7.14912289,139.15,139.08,86.79314742]
[1767644115043,7.14912289,139.15,139.08,84.94]
[1767644115542,6.4693,139.14,139.08,84.94]
[1767644116450,0.68022289,139.15,139.08,91.412]
[1767644116846,2.53337031,139.17,139.08,84.94]
[1767644117048,6.4683,139.16,139.09,8.32464742]
[1767644118648,7.14822289,139.17,139.1,6.471]
[1767644120757,0.68022289,139.17,139.1,6.471]
[1767644121353,7.14802289,139.17,139.1,6.471]
[1767644121949,7.14802289,139.17,139.09,6.4715]
[1767644122151,0.68022289,139.15,139.09,6.4715]
[1767644123855,0.68022289,139.17,139.1,6.471]
[1767644124268,7.14812289,139.17,139.08,93.26474742]
[1767644124461,0.68022289,139.17,139.08,86.79314742]
[1767644124856,0.68022289,139.17,139.09,6.4715]
[1767644125058,8.32084742,139.18,139.1,1.85314742]
[1767644125265,9.00107031,139.18,139.1,1.85314742]
[1767644125461,7.14812289,139.17,139.09,84.94]
[1767644125959,6.4683,139.16,139.09,91.4113]
[1767644126160,2.53337031,139.16,139.09,84.94]
[1767644126362,0.68022289,139.15,139.06,84.94]
[1767644126562,0.68022289,139.15,139.05,1.85314742]
[1767644126761,0.68022289,139.13,139.04,84.94]
[1767644127068,1.85314742,139.12,139.04,84.94]
[1767644127266,8.32334742,139.12,139.05,6.4733]
[1767644127659,1.85314742,139.12,139.05,6.4733]
[1767644128066,1.85314742,139.12,139.06,6.4729]
[1767644128255,1.85314742,139.12,139.04,84.94]
[1767644129067,8.32334742,139.12,139.05,6.4734]
[1767644131975,8.98579894,139.12,139.05,6.4734]
[1767644132169,6.4706,139.11,139.05,6.4734]
[1767644132564,7.13355152,139.1,139.03,6.4739]
[1767644132762,1.85314742,139.08,139.01,34.01177924]
[1767644132973,0.66245152,139.05,139.01,34.01177924]
[1767644133568,1.85314742,139.04,138.97,6.4768]
[1767644136279,7.13505152,139.07,138.99,1.85314742]
[1767644137577,7.13505152,139.07,138.99,8.32924742]
[1767644137974,0.66245152,139.05,138.94,100.7754]
[1767644138174,0.66245152,139.05,138.95,86.81314742]
[1767644138882,6.474,139.04,138.97,6.4771]
[1767644139279,0.66245152,139.05,138.97,6.4771]
[1767644139484,0.66245152,139.05,138.97,8.33024742]
[1767644139784,7.13595152,139.05,138.97,8.33024742]
[1767644140578,7.13595152,139.05,138.98,6.4766]
[1767644141781,1.85314742,139.09,139.01,1.85314742]
[1767644141980,0.66245152,139.11,139.05,1.85314742]
[1767644142186,0.66245152,139.14,139.01,100.7237]
[1767644142486,6.4701,139.13,139.05,1.85314742]
[1767644142881,0.66245152,139.14,139.07,1.85314742]
[1767644143084,6.4697,139.13,139.07,1.85314742]
[1767644143383,6.4697,139.13,139.06,8.32594742]
[1767644144488,6.4697,139.13,139.06,6.4728]
[1767644144688,0.66245152,139.17,139.07,2.89584413]
[1767644145085,0.66245152,139.17,139.1,6.471]
[1767644145279,0.66245152,139.19,139.1,6.471]
[1767644145686,0.66245152,139.19,139.1,91.451]
[1767644145991,85.64245152,139.22,139.11,2.89584413]
[1767644146192,0.66245152,139.22,139.11,2.89584413]
[1767644146693,6.4661,139.21,139.13,6.4696]
[1767644147688,7.12855152,139.21,139.13,6.4696]
[1767644147889,0.66245152,139.21,139.13,6.4696]
[1767644148795,24.58737029,139.27,139.14,100.6323]
[1767644149095,0.66245152,139.27,139.15,100.6249]
[1767644149293,0.66245152,139.27,139.16,84.96]
[1767644150091,0.66245152,139.26,139.16,84.96]
[1767644150294,0.66245152,139.25,139.15,84.94]
[1767644150597,0.66245152,139.25,139.13,84.94]
[1767644151794,7.12795152,139.23,139.13,84.94]
[1767644152497,0.66245152,139.21,139.1,7.67483606]
[1767644152698,0.66245152,139.21,139.11,84.94]
[1767644153095,0.66245152,139.21,139.1,108.33393606]
[1767644153296,0.66245152,139.2,139.12,6.47]
[1767644153701,7.12905152,139.2,139.11,84.94]
[1767644154195,7.12905152,139.2,139.1,6.4708]
[1767644154394,7.13407629,139.19,139.1,91.3908]
[1767644155902,0.66677629,139.18,139.1,91.3908]
[1767644156204,0.66677629,139.17,139.1,84.92]
[1767644157696,7.13487629,139.17,139.1,84.92]
[1767644157898,0.66677629,139.17,139.1,84.92]
[1767644158097,100.6025,139.19,139.07,84.92]
[1767644158098,7.13577629,139.15,139.07,84.92]
[1767644158805,7.13577629,139.15,139.07,91.3924]
[1767644161401,6.4681,139.17,139.08,6.4718]
[1767644161596,7.12558981,139.17,139.08,6.4718]
[1767644162198,7.12558981,139.17,139.07,84.92]
[1767644162199,6.4684,139.16,139.07,84.92]
[1767644163405,7.12588981,139.16,139.07,84.92]
[1767644163597,7.12588981,139.16,139.08,6.4719]
[1767644164908,6.4684,139.16,139.08,6.4719]
[1767644168014,0.65748981,139.2,139.09,100.6688]
[1767644168708,0.65748981,139.2,139.1,2.89348263]
[1767644169612,7.12398981,139.2,139.12,6.4699]
[1767644170110,7.12398981,139.2,139.12,91.4099]
[1767644170616,0.65748981,139.19,139.1,6.4707]
[1767644170806,0.65748981,139.19,139.11,84.94]
[1767644171711,6.4674,139.18,139.11,91.4106]
[1767644172110,6.4679,139.17,139.11,84.94]
[1767644173310,7.12538981,139.17,139.11,84.94]
[1767644175116,7.12538981,139.17,139.1,6.4711]
[1767644176321,6.4683,139.16,139.08,84.92]
[1767644176907,0.65748981,139.17,139.08,84.92]
[1767644177108,0.65748981,139.16,139.08,84.92]
[1767644177312,0.65748981,139.16,139.05,84.92]
[1767644177714,0.65748981,139.14,139.05,84.92]
[1767644178514,0.65748981,139.16,139.07,6.4725]
[1767644179625,6.4693,139.14,139.07,6.4725]
[1767644182932,6.4708,139.11,139.04,6.4739]
[1767644183718,0.65748981,139.1,138.99,2.89348263]
[1767644183918,0.65748981,139.1,138.99,87.83348263]
[1767644184629,6.472,139.08,139.01,6.475]
[1767644186625,7.12948981,139.08,139.01,6.475]
[1767644187724,0.65748981,139.08,138.99,91.4159]
[1767644188629,6.473,139.06,138.99,91.4159]
[1767644188832,0.65748981,139.08,138.99,84.94]
[1767644189632,7.13098981,139.05,138.96,6.4772]
[1767644189826,7.13098981,139.05,138.96,84.96]
[1767644190135,6.474,139.04,138.96,84.96]
[1767644190325,6.474,139.04,138.93,108.47344629]
[1767644190526,7.13148981,139.04,138.94,84.96]
[1767644191532,7.13148981,139.04,138.96,6.4775]
[1767644191736,0.65748981,139.04,138.94,84.96]
[1767644191941,0.68484052,139.07,138.94,185.733]
[1767644193433,6.4739,139.04,138.97,6.4771]
[1767644194641,7.15824052,139.06,138.97,6.4771]
[1767644194942,7.15824052,139.06,138.98,6.4766]
[1767644195439,7.15824052,139.06,138.94,185.733]
[1767644195440,6.4724,139.08,138.97,100.7553]
[1767644195635,101.33544052,139.12,138.99,84.98]
[1767644195941,0.68484052,139.11,138.99,84.98]
[1767644196136,6.4714,139.1,139.02,6.4747]
[1767644196336,0.68484052,139.11,138.99,84.98]
[1767644196642,0.68484052,139.1,138.99,84.98]
[1767644197232,6.4727,139.07,138.99,84.98]
[1767644197439,0.68484052,139.06,138.96,84.98]
[1767644198046,100.68,139.08,138.96,84.98]
[1767644198047,6.4726,139.07,138.97,100.7555]
[1767644199048,6.4726,139.07,139.0,6.4757]
[1767644199250,7.15784052,139.06,138.96,92.67184629]
[1767644199548,0.68484052,139.06,138.96,92.67184629]
[1767644199744,6.4735,139.05,138.98,6.4763]
[1767644203549,0.68484052,139.06,138.99,6.4762]
[1767644203751,6.4729,139.07,138.99,6.4762]
[1767644204251,6.473,139.06,138.99,6.4762]
[1767644205047,7.15704052,139.08,139.0,6.4757]
[1767644205248,0.68484052,139.11,138.99,122.3506]
[1767644206247,6.4716,139.09,139.02,6.4746]
[1767644207048,7.15694052,139.08,139.01,84.98]
[1767644208653,7.15694052,139.08,139.01,91.4551]
[1767644209049,7.15694052,139.08,139.01,84.98]
[1767644209050,0.68484052,139.08,139.01,84.98]
[1767644209251,0.68484052,139.08,139.02,6.4748]
[1767644210461,6.4716,139.09,139.02,8.32981853]
[1767644211859,2.53985905,139.14,139.04,1.85501853]
[1767644212161,2.53985905,139.14,139.06,1.85501853]
[1767644212162,0.68484052,139.14,139.06,1.85501853]
[1767644212360,0.68484052,139.14,139.06,86.83501853]
[1767644212861,6.4697,139.13,139.06,93.30791853]
[1767644213058,2.53985905,139.14,139.06,86.83501853]
[1767644214160,2.53985905,139.14,139.06,1.85501853]
[1767644214361,6.4698,139.13,139.06,1.85501853]
[1767644214558,7.13054679,139.13,139.05,84.98]
[1767644214862,0.66074679,139.13,139.05,1.85501853]
[1767644215566,6.4702,139.12,139.05,8.32841853]
[1767644215866,6.4702,139.12,139.05,6.4734]
[1767644217073,6.4706,139.11,139.05,6.4734]
[1767644217458,0.66074679,139.11,139.02,1.85501853]
[1767644217664,6.4717,139.09,139.02,86.83501853]
[1767644218361,7.13184679,139.11,139.03,6.4743]
[1767644218763,0.66074679,139.11,139.03,6.4743]
[1767644219764,6.4711,139.1,139.03,6.4743]
[1767644219972,0.66074679,139.14,139.02,89.7107121]
[1767644220266,0.66074679,139.14,139.03,122.3222]
[1767644220473,0.66074679,139.17,139.08,6.472]
[1767644220662,0.66074679,139.16,139.03,122.3222]
[1767644220865,0.68691767,139.14,139.03,100.7122]
[1767644221859,0.68691767,139.14,139.06,6.4729]
[1767644222064,6.4692,139.15,139.07,84.96]
[1767644222474,0.68691767,139.13,139.06,6.4727]
[1767644222773,0.68691767,139.13,139.04,84.96]
[1767644223071,6.4703,139.12,139.04,6.4735]
[1767644223771,7.15721767,139.12,139.04,6.4735]
[1767644225472,6.4707,139.11,139.04,6.4735]
[1767644226175,0.68691767,139.12,139.04,6.4735]
[1767644226368,0.68691767,139.15,139.03,185.6681]
[1767644227576,6.4696,139.14,139.07,6.4724]
[1767644227873,7.15651767,139.14,139.03,185.6681]
[1767644228479,0.68691767,139.13,139.02,4.7307121]
[1767644228671,0.68691767,139.13,139.03,84.96]
[1767644229277,0.68691767,139.1,138.99,4.7307121]
[1767644229468,0.68691767,139.1,139.0,84.96]
[1767644230072,0.68691767,139.1,139.02,6.4747]
[1767644230274,0.68691767,139.1,139.0,84.96]
[1767644231574,7.15801767,139.1,139.03,6.4743]
[1767644232777,7.15851767,139.09,139.0,84.96]
[1767644232974,0.68691767,139.09,139.0,84.96]
[1767644233774,0.68691767,139.12,139.0,185.6913]
[1767644234282,0.68691767,139.12,139.04,6.4739]
[1767644234684,0.68691767,139.12,138.99,4.7307121]
[1767644234977,0.68691767,139.12,139.0,84.96]
[1767644235384,7.15891767,139.08,139.0,91.4354]
[1767644235985,7.15941767,139.07,139.0,84.96]
[1767644236575,7.15941767,139.07,139.0,91.4357]
[1767644236979,0.68691767,139.05,138.96,32.01727762]
[1767644237185,0.68691767,139.05,138.97,84.96]
[1767644238483,0.68691767,139.05,138.99,6.4762]
[1767644239885,8.32884019,139.06,138.97,86.81584019]
[1767644239886,1.85584019,139.06,139.0,6.4757]
[1767644240478,1.85584019,139.07,139.0,6.4757]
[1767644240678,9.01525786,139.07,139.0,6.4757]
[1767644241881,2.54275786,139.05,138.98,6.4762]
[1767644242083,2.54275786,139.05,138.97,84.96]
[1767644242287,0.68691767,139.05,138.97,84.96]
[1767644242479,2.54275786,139.04,138.97,84.96]
[1767644242986,9.01665786,139.04,138.97,84.96]
[1767644243191,1.85584019,139.06,138.97,86.81584019]
[1767644244691,8.32834019,139.06,138.98,6.4759]
[1767644245098,8.32834019,139.06,138.97,86.81584019]
[1767644245483,0.68691767,139.07,138.97,86.81584019]
[1767644245685,2.54275786,139.1,139.01,1.85584019]
[1767644245988,0.68691767,139.09,139.01,1.85584019]
[1767644246589,0.68691767,139.07,138.98,1.85584019]
[1767644247088,0.68691767,139.07,138.99,84.98]
[1767644247685,7.15881767,139.07,139.0,6.4751]
[1767644247886,0.68691767,139.06,139.0,6.4751]
[1767644248286,2.54275786,139.04,138.96,32.01727762]
[1767644248501,2.54275786,139.04,138.96,116.99727762]
[1767644249192,9.01605786,139.04,138.97,6.4765]
[1767644250396,8.32854019,139.06,138.97,1.85584019]
[1767644250694,1.85584019,139.06,138.97,1.85584019]
[1767644250888,2.53178978,139.06,138.97,1.85584019]
[1767644251088,6.4729,139.05,138.98,6.476]
[1767644251792,2.53178978,139.06,138.98,6.476]
[1767644252001,2.53178978,139.06,138.99,6.4755]
[1767644253588,9.00408978,139.06,138.99,6.4755]
[1767644254696,2.53178978,139.09,138.99,1.85584019]
[1767644254996,2.53178978,139.09,139.02,6.4741]
[1767644255297,2.53178978,139.09,139.01,1.85584019]
[1767644255597,6.4709,139.1,139.03,8.32944019]
[1767644255793,0.67594959,139.15,139.07,1.85584019]
[1767644256195,7.14444959,139.15,139.08,6.4713]
[1767644256990,7.14444959,139.15,139.06,91.4519]
[1767644257191,6.4676,139.17,139.06,84.98]
[1767644257394,7.14354959,139.17,139.06,84.98]
[1767644258198,0.67594959,139.14,139.02,100.7056]
[1767644258507,0.67594959,139.14,139.03,84.98]
[1767644260602,7.14474959,139.14,139.06,6.4721]
[1767644261099,0.67594959,139.14,139.03,84.98]
[1767644261402,0.67594959,139.12,139.04,91.4531]
[1767644262604,7.14564959,139.12,139.04,91.4531]
[1767644263197,7.14564959,139.12,139.01,100.714]
[1767644263198,0.67594959,139.11,139.02,6.4738]
[1767644263402,0.67594959,139.11,139.02,84.98]
[1767644263998,0.67594959,139.13,139.02,84.98]
[1767644264697,0.67594959,139.1,139.02,6.474]
[1767644265701,5.40242601,139.13,139.03,6.4736]
[1767644265903,0.67594959,139.12,139.03,6.4736]
[1767644267296,0.67594959,139.09,139.01,6.4743]
[1767644267493,0.67594959,139.09,138.96,132.76757762]
[1767644267806,0.67594959,139.08,138.97,84.96]
[1767644268000,6.4729,139.05,138.97,84.96]
[1767644268699,6.4729,139.05,138.98,6.4759]
[1767644268904,7.14794959,139.07,138.98,6.4759]
[1767644269201,0.67594959,139.07,138.98,6.4759]
[1767644270604,6.4725,139.06,138.98,6.4759]
[1767644270801,0.67594959,139.07,138.99,6.4754]
[1767644271204,6.4725,139.06,138.97,84.96]
[1767644271404,6.4725,139.06,138.98,6.4759]
[1767644271707,6.4725,139.06,138.97,84.96]
[1767644272709,6.4725,139.06,138.99,6.4755]
[1767644273410,6.4725,139.06,138.97,84.96]
[1767644274210,6.4728,139.05,138.98,6.476]
[1767644274409,7.18630299,139.05,138.98,6.476]
[1767644276012,0.71350299,139.05,138.92,100.7797]
[1767644276213,0.71350299,139.05,138.93,84.98]
[1767644277817,6.4744,139.02,138.95,6.4774]
[1767644279521,7.18830299,139.01,138.93,6.4781]
[1767644279713,7.18830299,139.01,138.94,84.98]
[1767644280714,2.90098946,139.03,138.95,6.4773]
[1767644281318,3.60931159,139.03,138.95,6.4773]
[1767644281709,6.4742,139.02,138.95,6.4773]
[1767644281909,3.60931159,139.03,138.94,84.98]
[1767644282116,2.90098946,139.01,138.88,4.1524954]
[1767644282409,0.70832213,139.0,138.89,91.4799]
[1767644282611,0.70832213,138.98,138.87,33.32166647]
[1767644282813,0.70832213,138.98,138.88,85.0]
[1767644283118,6.4769,138.97,138.88,91.4806]
[1767644283714,6.4769,138.97,138.88,85.0]
[1767644283912,6.4769,138.97,138.89,6.48]
[1767644284810,6.477,138.96,138.88,85.0]
[1767644285010,0.70832213,138.96,138.88,85.0]
[1767644285917,6.4775,138.95,138.88,85.0]
[1767644286313,0.70832213,138.95,138.88,85.0]
[1767644287123,6.4786,138.93,138.88,85.0]
[1767644287315,0.70832213,138.97,138.86,85.02]
[1767644288213,0.70832213,138.94,138.86,85.02]
[1767644289519,6.4777,138.95,138.86,85.02]
[1767644290317,6.478,138.94,138.86,85.02]
[1767644291416,6.4773,138.96,138.87,6.481]
[1767644291616,179.0,139.09,138.87,6.481]
[1767644291617,101.43752213,139.0,138.87,100.8178]
[1767644291807,0.70832213,138.99,138.87,100.8178]
[1767644292211,0.70832213,138.98,138.88,6.4803]
[1767644292512,0.70832213,138.98,138.86,85.02]
[1767644292718,0.70832213,138.97,138.86,85.02]
[1767644293216,6.478,138.94,138.86,91.5015]
[1767644293618,0.70832213,138.97,138.86,85.02]
[1767644293921,6.4775,138.95,138.87,6.4811]
[1767644294609,7.18522213,138.97,138.88,6.4805]
[1767644294809,0.70832213,138.97,138.88,6.4805]
[1767644295112,0.70832213,138.99,138.86,85.02]
[1767644295515,0.70832213,138.98,138.86,85.02]
[1767644295816,0.70832213,138.97,138.86,85.02]
[1767644296024,6.478,138.94,138.86,85.02]
[1767644296417,0.70832213,138.95,138.86,85.02]
[1767644298222,7.18622213,138.95,138.86,85.02]
[1767644298919,6.478,138.94,138.86,85.02]
[1767644299816,0.70832213,138.95,138.88,6.4807]
[1767644300421,0.70832213,138.95,138.86,85.02]
[1767644301817,0.70832213,138.98,138.86,185.8456]
[1767644302120,0.70832213,139.01,138.89,100.8011]
[1767644302720,6.4755,139.0,138.93,6.4783]
[1767644302922,0.70832213,139.01,138.92,85.06]
[1767644303424,6.4757,138.99,138.92,91.5385]
[1767644304426,6.4762,138.98,138.92,85.06]
[1767644305526,6.4762,138.98,138.92,91.5388]
[1767644306921,6.4766,138.97,138.92,85.06]
[1767644307122,6.4766,138.97,138.9,91.5195]
[1767644308124,6.477,138.96,138.9,85.04]
[1767644308424,0.70832213,138.97,138.9,85.04]
[1767644308630,0.70832213,138.97,138.87,85.04]
[1767644309327,6.4775,138.95,138.87,91.5207]
[1767644310231,6.4775,138.95,138.88,6.4807]
[1767644311328,6.478,138.94,138.88,6.4807]
[1767644311526,0.65520256,138.95,138.86,6.4815]
[1767644311726,0.65520256,138.95,138.86,91.5215]
[1767644312128,6.4784,138.93,138.86,91.5215]
[1767644312724,6.4784,138.93,138.86,6.4815]
[1767644312926,6.4784,138.93,138.86,91.5215]
[1767644313131,3.55726735,138.94,138.86,85.04]
[1767644313426,0.65520256,138.94,138.86,85.04]
[1767644313830,6.4784,138.93,138.86,91.5216]
[1767644314632,6.4778,138.95,138.86,85.04]
[1767644315623,6.4778,138.95,138.88,6.4807]
[1767644318435,6.478,138.94,138.86,91.5212]
[1767644318631,0.65520256,138.94,138.86,91.5212]
[1767644318833,3.55726735,138.97,138.86,85.04]
[1767644319033,6.478,138.94,138.86,91.5212]
[1767644319337,6.478,138.94,138.86,85.04]
[1767644320639,6.478,138.94,138.87,6.4811]
[1767644320945,6.478,138.94,138.86,85.04]
[1767644320946,0.65520256,138.94,138.86,85.04]
[1767644322038,0.65520256,138.94,138.83,2.90206479]
[1767644322239,0.65520256,138.94,138.84,85.06]
[1767644322640,6.4789,138.92,138.85,6.4817]
[1767644323438,0.65520256,138.94,138.84,85.06]
[1767644324746,0.65520256,138.94,138.85,6.4821]
[1767644326047,6.4788,138.92,138.85,6.4821]
[1767644326250,6.4788,138.92,138.84,85.06]
[1767644326251,0.65520256,138.92,138.84,85.06]
[1767644327954,6.4798,138.9,138.84,85.06]
[1767644328953,100.7646,138.95,138.84,86.91970158]
[1767644328954,0.65520256,138.95,138.84,86.91970158]
[1767644329145,2.51490414,138.94,138.84,86.91970158]
[1767644329342,0.65520256,138.93,138.84,86.91970158]
[1767644329554,0.65520256,138.91,138.84,85.06]
[1767644331042,2.51490414,138.9,138.81,86.91970158]
[1767644331248,8.34050158,138.88,138.81,91.5439]
[1767644331544,1.85970158,138.88,138.81,85.06]
[1767644331745,6.4817,138.86,138.79,8.34460158]
[1767644331940,6.4817,138.86,138.79,93.40460158]
[1767644332350,100.7931,138.91,138.79,187.79320158]
[1767644332351,1.85970158,138.89,138.79,187.79320158]
[1767644332556,0.65520256,138.91,138.81,1.85970158]
[1767644332557,2.51490414,138.91,138.81,1.85970158]
[1767644333663,8.33990158,138.89,138.82,6.4835]
[1767644333955,2.5609225,138.89,138.81,1.85970158]
[1767644334156,2.5609225,138.89,138.8,85.08]
[1767644335052,6.4807,138.88,138.82,6.4835]
[1767644335760,1.85970158,138.89,138.82,6.4835]
[1767644336660,1.85970158,138.89,138.81,1.85970158]
[1767644336661,6.4807,138.88,138.81,1.85970158]
[1767644336856,1.85970158,138.87,138.79,85.08]
[1767644337160,0.70122092,138.88,138.8,1.85970158]
[1767644337161,2.5609225,138.88,138.8,1.85970158]
[1767644337348,9.0416225,138.88,138.81,6.4838]
[1767644338060,6.4807,138.88,138.81,6.4838]
[1767644339950,2.5609225,138.9,138.81,6.4838]
[1767644340460,0.70122092,138.96,138.86,1.85970158]
[1767644340658,0.70122092,138.96,138.87,1.85970158]
[1767644340860,6.4764,138.98,138.89,1.85970158]
[1767644341158,6.4764,138.98,138.87,122.4227]
[1767644341159,6.4764,138.98,138.91,1.85970158]
[1767644342056,0.66936313,138.99,138.91,1.85970158]
[1767644342665,0.66936313,138.99,138.9,1.85970158]
[1767644342861,6.4754,139.0,138.92,1.85970158]
[1767644343364,7.14476313,139.0,138.92,1.85970158]
[1767644343864,1.85970158,139.02,138.94,1.85970158]
[1767644344059,87.60906471,139.03,138.94,1.85970158]
[1767644344564,0.66936313,139.01,138.92,6.4784]
[1767644344866,2.52906471,139.01,138.93,1.85970158]
[1767644345258,6.4744,139.02,138.95,8.33700158]
[1767644345966,7.14286313,139.04,138.95,8.33700158]
[1767644346359,0.66936313,139.04,138.95,8.33700158]
[1767644346760,7.14316313,139.03,138.95,1.85970158]
[1767644348463,6.4729,139.05,138.95,1.85970158]
[1767644348670,6.4729,139.05,138.97,1.85970158]
[1767644348869,0.66936313,139.05,138.97,1.85970158]
[1767644349068,6.4734,139.04,138.97,1.85970158]
[1767644349366,2.52906471,139.04,138.95,8.33700158]
[1767644349865,6.4729,139.05,138.97,8.33610158]
[1767644350168,0.66936313,139.05,138.97,1.85970158]
[1767644351562,6.4736,139.04,138.97,1.85970158]
[1767644354369,6.4738,139.03,138.94,6.4775]
[1767644354562,6.4738,139.03,138.96,1.85970158]
[1767644355767,7.14316313,139.03,138.95,6.4773]
[1767644355967,7.14316313,139.03,138.95,8.33700158]
[1767644356163,6.4743,139.02,138.95,8.33700158]
[1767644356369,7.14366313,139.02,138.95,1.85970158]
[1767644357369,6.4743,139.02,138.94,6.4778]
[1767644357573,1.85970158,139.02,138.91,100.7893]
[1767644357775,2.52906471,139.02,138.93,1.85970158]
[1767644357971,2.52906471,139.02,138.94,6.4777]
[1767644358275,0.66936313,139.02,138.93,1.85970158]
[1767644358973,7.14366313,139.02,138.93,1.85970158]
[1767644359879,9.00336471,139.02,138.93,1.85970158]
[1767644360579,9.00336471,139.02,138.94,6.4778]
[1767644363174,9.00336471,139.02,138.95,6.4774]
[1767644363375,7.14366313,139.02,138.95,6.4774]
[1767644365776,8.33290158,139.04,138.95,1.85970158]
[1767644366185,2.52906471,139.04,138.95,1.85970158]
[1767644366886,6.4738,139.03,138.96,6.4769]
[1767644367083,7.14316313,139.03,138.96,6.4769]
[1767644368290,0.66936313,139.03,138.97,6.4761]
[1767644368881,7.14306313,139.03,138.97,6.4761]
[1767644369078,0.66936313,139.03,138.97,6.4761]
[1767644370582,7.14306313,139.03,138.97,6.4761]
[1767644371490,12.9416,139.1,138.97,1.85970158]
[1767644371491,0.70949297,139.06,138.97,1.85970158]
[1767644371694,0.70949297,139.06,138.96,85.02]
[1767644371892,0.70949297,139.06,138.98,1.85970158]
[1767644372592,6.4729,139.05,138.98,1.85970158]
[1767644372891,6.4729,139.05,138.97,6.476]
[1767644373083,6.4729,139.05,138.97,8.33570158]
[1767644373284,0.70949297,139.04,138.97,6.4764]
[1767644374796,7.18289297,139.04,138.97,6.4764]
[1767644374992,0.70949297,139.04,138.98,6.476]
[1767644376092,1.85970158,139.05,138.98,6.476]
[1767644376693,8.33250158,139.05,138.98,6.476]
[1767644377483,0.70949297,139.06,138.96,187.62840158]
[1767644377792,2.56919455,139.08,138.98,1.85970158]
[1767644378380,6.4718,139.07,138.98,1.85970158]
[1767644378585,7.18129297,139.07,138.98,1.85970158]
[1767644378786,0.70949297,139.05,138.98,1.85970158]
[1767644378993,0.70949297,139.05,138.97,85.0]
[1767644380592,7.18229297,139.05,138.98,6.4757]
[1767644386704,185.6827,139.09,138.98,1.85970158]
[1767644386705,6.4722,139.07,138.98,1.85970158]
[1767644387202,7.18169297,139.07,138.98,1.85970158]
[1767644387997,6.4725,139.06,139.0,6.475]
[1767644388203,6.4725,139.06,138.97,98.19317696]
[1767644388204,9.04169455,139.06,138.97,98.19317696]
[1767644389602,0.70949297,139.05,138.99,6.4755]
[1767644391316,0.70949297,139.04,138.97,104.66937696]
[1767644391523,0.70949297,139.04,138.97,91.4762]
[1767644392615,7.18269297,139.04,138.97,91.4762]
[1767644393211,7.18269297,139.04,138.98,6.476]
[1767644393607,2.89941176,139.06,138.97,85.0]
[1767644393910,3.58699244,139.06,138.97,85.0]